bitfinex-derivatives/quotes_BTCF0:USTF0_20250729
["timestamp","ask_amount","ask_price","bid_price","bid_amount"]
[1753827842394,0.51259,117620.0,117610.0,1.91835806]
[1753827845296,0.51259,117620.0,117610.0,2.15471977]
[1753827849701,0.51259,117620.0,117610.0,1.91835806]
[1753827850697,0.51259,117620.0,117610.0,2.15471977]
[1753827851092,0.51259,117620.0,117610.0,1.91835806]
[1753827851292,0.51259,117620.0,117610.0,2.15471977]
[1753827856102,0.51259,117620.0,117610.0,2.15571977]
[1753827856703,0.51259,117620.0,117610.0,2.15471977]
[1753827861908,0.51259,117620.0,117610.0,1.91835806]
[1753827862208,0.51259,117620.0,117610.0,2.15471977]
[1753827862910,0.51259,117620.0,117610.0,2.18423683]
[1753827869814,0.51259,117620.0,117610.0,2.18523683]
[1753827872411,0.15915,117620.0,117610.0,2.18523683]
[1753827872614,0.11,117620.0,117610.0,2.18523683]
[1753827873612,0.11,117620.0,117610.0,2.4511156]
[1753827873917,0.11,117620.0,117610.0,2.72804606]
[1753827874813,0.11,117620.0,117610.0,2.43251792]
[1753827875118,0.11,117620.0,117610.0,2.32563546]
[1753827875318,0.11,117620.0,117610.0,2.43221996]
[1753827875616,0.11,117620.0,117610.0,2.32563546]
[1753827875811,0.04647,117640.0,117610.0,2.32563546]
[1753827876016,0.16647,117640.0,117630.0,0.4062912]
[1753827876209,0.16647,117640.0,117630.0,1.0871712]
[1753827876414,0.16647,117640.0,117630.0,2.0871712]
[1753827878623,0.16947,117640.0,117630.0,2.0871712]
[1753827879416,0.16747,117640.0,117630.0,2.0871712]
[1753827880118,0.16647,117640.0,117630.0,2.0871712]
[1753827886823,0.16647,117640.0,117630.0,3.2631712]
[1753827895626,0.16647,117640.0,117630.0,3.0269418]
[1753827895826,0.16647,117640.0,117630.0,3.2631712]
[1753827896824,0.16647,117640.0,117630.0,3.55844044]
[1753827897923,0.16647,117640.0,117630.0,3.57552009]
[1753827897924,0.12,117640.0,117630.0,3.57552009]
[1753827899630,0.12,117640.0,117630.0,3.68208534]
[1753827900524,0.12,117640.0,117630.0,3.57552009]
[1753827900722,0.12,117640.0,117630.0,3.28019774]
[1753827901130,0.12,117640.0,117630.0,3.38659935]
[1753827904025,0.12,117640.0,117630.0,3.28019774]
[1753827905633,0.04834,117670.0,117660.0,0.297526]
[1753827905930,0.51701,117670.0,117660.0,1.23094795]
[1753827906836,0.52001,117670.0,117660.0,1.23094795]
[1753827907035,0.52001,117670.0,117660.0,1.23980225]
[1753827907435,0.6900142,117670.0,117660.0,1.00362596]
[1753827907627,0.52001,117670.0,117660.0,1.23980225]
[1753827907832,0.52501,117670.0,117660.0,1.23980225]
[1753827911540,0.17634,117670.0,117660.0,2.23980225]
[1753827912225,0.52501,117670.0,117660.0,2.23980225]
[1753827912438,0.17634,117670.0,117660.0,2.23980225]
[1753827919749,0.17634,117670.0,117660.0,2.00362596]
[1753827919936,0.5176,117670.0,117660.0,2.23980225]
[1753827920743,0.5176,117670.0,117660.0,2.53487354]
[1753827922039,0.128,117670.0,117660.0,2.53487354]
[1753827922239,0.045,117680.0,117670.0,0.042501]
[1753827922445,0.045,117680.0,117670.0,1.42371278]
[1753827922446,0.145,117680.0,117670.0,1.42371278]
[1753827922743,0.1,117680.0,117670.0,2.42371278]
[1753827924946,0.101,117680.0,117670.0,2.12846084]
[1753827925340,0.103,117680.0,117670.0,2.12846084]
[1753827925540,0.103,117680.0,117670.0,2.36445648]
[1753827926446,0.103,117680.0,117670.0,2.12846084]
[1753827927140,0.148,117680.0,117670.0,2.12846084]
[1753827927639,0.148,117680.0,117670.0,2.19531122]
[1753827931248,0.103,117680.0,117670.0,2.19531122]
[1753827931751,0.045,117700.0,117690.0,0.1699753]
[1753827931946,0.165,117700.0,117690.0,2.43122384]
[1753827932450,0.165,117700.0,117690.0,2.1952282]
[1753827932838,0.166,117700.0,117690.0,2.1952282]
[1753827933652,0.166,117700.0,117690.0,2.43122384]
[1753827933947,0.50726,117700.0,117690.0,2.43118384]
[1753827935152,0.50726,117700.0,117690.0,1.5154682]
[1753827935445,0.50726,117700.0,117690.0,2.1526144]
[1753827935853,0.6772209,117700.0,117690.0,2.1526144]
[1753827936048,0.50726,117700.0,117690.0,2.1526144]
[1753827936852,0.32081,117700.0,117690.0,2.38861004]
[1753827937048,0.43895,117700.0,117690.0,2.38861004]
[1753827937256,0.32081,117700.0,117690.0,2.38861004]
[1753827937846,0.43895,117700.0,117690.0,2.38861004]
[1753827938146,0.50726,117700.0,117690.0,2.38861004]
[1753827942750,0.50726,117700.0,117690.0,2.1526144]
[1753827942957,0.50726,117700.0,117690.0,2.38861004]
[1753827945357,0.50726,117700.0,117690.0,1.70897004]
[1753827945557,0.93043654,117700.0,117690.0,2.0249753]
[1753827946054,0.52448,117700.0,117690.0,2.26097094]
[1753827946245,0.33081,117700.0,117690.0,2.26097094]
[1753827947558,0.45217,117700.0,117690.0,2.26097094]
[1753827949860,0.52448,117700.0,117690.0,2.26097094]
[1753827958862,0.52348,117700.0,117690.0,2.26097094]
[1753827959763,0.175,117700.0,117690.0,3.26097094]
[1753827961863,0.175,117700.0,117690.0,3.26197094]
[1753827962262,0.175,117700.0,117690.0,3.26097094]
[1753827962567,0.175,117700.0,117690.0,3.26197094]
[1753827972675,0.175,117700.0,117690.0,2.58249094]
[1753827972879,0.175,117700.0,117690.0,3.26177094]
[1753827973080,0.52379,117700.0,117690.0,3.26177094]
[1753827973585,0.52379,117700.0,117690.0,3.26377094]
[1753827974377,0.52379,117700.0,117690.0,3.37017255]
[1753827974981,0.52379,117700.0,117690.0,3.37217255]
[1753827976784,0.52379,117700.0,117690.0,3.26577094]
[1753827981090,0.52379,117700.0,117690.0,3.26377094]
[1753827981291,0.52379,117700.0,117690.0,3.37417255]
[1753827981790,0.52379,117700.0,117690.0,3.37317255]
[1753827982992,0.33012,117700.0,117690.0,3.37317255]
[1753827983191,0.175,117700.0,117690.0,3.37317255]
[1753827983391,0.175,117700.0,117690.0,3.37017255]
[1753827983591,0.175,117700.0,117690.0,3.37217255]
[1753827984184,0.175,117700.0,117690.0,3.37317255]
[1753827984390,0.175,117700.0,117690.0,3.37417255]
[1753827984990,0.13,117700.0,117690.0,3.37017255]
[1753827985190,0.13,117700.0,117690.0,3.37217255]
[1753827985893,0.17735,117700.0,117690.0,3.37217255]
[1753827987293,0.13,117700.0,117690.0,3.37417255]
[1753827987893,0.17735,117700.0,117690.0,3.37417255]
[1753827990595,0.17735,117700.0,117690.0,3.26777094]
[1753827991491,0.17735,117700.0,117690.0,3.26377094]
[1753827991700,0.17735,117700.0,117690.0,3.26777094]
[1753827991899,0.13,117700.0,117690.0,3.26777094]
[1753827994301,0.17735,117700.0,117690.0,3.37428273]
[1753827996200,0.17735,117700.0,117690.0,3.37528273]
[1753827997492,0.17735,117700.0,117690.0,3.26777094]
[1753827997695,0.17735,117700.0,117690.0,3.26977094]
[1753827998201,0.17735,117700.0,117690.0,3.26777094]
[1753828000903,0.53194,117700.0,117690.0,3.26777094]
[1753828002402,0.53194,117700.0,117690.0,3.26677094]
[1753828003098,0.53194,117700.0,117690.0,1.58749094]
[1753828003395,0.53194,117700.0,117690.0,2.26649094]
[1753828004804,0.53194,117700.0,117690.0,2.26349094]
[1753828005004,0.53194,117700.0,117690.0,2.26549094]
[1753828007704,0.53194,117700.0,117690.0,2.37201951]
[1753828011706,0.53194,117700.0,117690.0,2.26549094]
[1753828018509,0.53194,117700.0,117690.0,2.37201951]
[1753828018907,0.53194,117700.0,117690.0,2.26549094]
[1753828019406,0.53194,117700.0,117690.0,2.37201951]
[1753828020010,0.33766,117700.0,117690.0,2.37201951]
[1753828020205,0.13,117700.0,117690.0,3.37201951]
[1753828020909,0.13,117700.0,117690.0,3.36901951]
[1753828021110,0.13,117700.0,117690.0,3.37401951]
[1753828021500,0.04842,117720.0,117700.0,0.0849802]
[1753828021804,0.12,117720.0,117710.0,1.24556968]
[1753828022206,0.12,117720.0,117710.0,2.24556968]
[1753828023005,0.12,117720.0,117710.0,2.35209825]
[1753828023910,0.12,117720.0,117710.0,2.35609825]
[1753828024120,0.12,117720.0,117710.0,2.52900225]
[1753828024326,0.04842,117740.0,117730.0,0.0424793]
[1753828024611,0.14842,117740.0,117730.0,0.99348046]
[1753828024811,0.14842,117740.0,117730.0,1.99348046]
[1753828025513,0.14842,117740.0,117730.0,2.00242575]
[1753828025713,0.14842,117740.0,117730.0,2.00342575]
[1753828025900,0.14842,117740.0,117730.0,2.00542575]
[1753828028401,0.04842,117740.0,117730.0,2.00542575]
[1753828028611,0.04842,117740.0,117730.0,2.07209809]
[1753828028812,0.15842,117740.0,117730.0,2.07209809]
[1753828029205,0.04842,117740.0,117730.0,2.07209809]
[1753828030214,0.15842,117740.0,117730.0,2.07209809]
[1753828033815,0.04842,117740.0,117730.0,2.07209809]
[1753828034117,0.17842,117740.0,117730.0,2.07209809]
[1753828037219,0.33953,117740.0,117730.0,2.07209809]
[1753828039125,0.33953,117740.0,117730.0,1.39329809]
[1753828039427,0.53725,117740.0,117730.0,2.07173809]
[1753828042122,0.53725,117740.0,117730.0,1.39329809]
[1753828042421,0.53725,117740.0,117730.0,2.02921879]
[1753828045520,0.16842,117740.0,117730.0,2.02921879]
[1753828048025,0.04842,117740.0,117730.0,2.02921879]
[1753828048521,0.15842,117740.0,117730.0,2.02921879]
[1753828049729,0.14842,117740.0,117730.0,2.02921879]
[1753828050421,0.27805,117740.0,117730.0,2.02921879]
[1753828050728,0.42905,117740.0,117730.0,2.02921879]
[1753828052034,8.04991,117750.0,117740.0,0.13275582]
[1753828052228,8.15991,117750.0,117740.0,1.52746972]
[1753828052729,8.15991,117750.0,117740.0,2.52746972]
[1753828053125,8.04991,117750.0,117740.0,2.52746972]
[1753828053526,8.16991,117750.0,117740.0,2.52746972]
[1753828054225,8.17991,117750.0,117740.0,2.52746972]
[1753828054432,8.38251,117750.0,117740.0,2.52746972]
[1753828054633,8.38251,117750.0,117740.0,2.52846972]
[1753828064635,8.38251,117750.0,117740.0,3.20658972]
[1753828069940,8.38251,117750.0,117740.0,3.31311829]
[1753828070140,8.5523886,117750.0,117740.0,3.09312439]
[1753828070344,8.38251,117750.0,117740.0,3.09312439]
[1753828071537,8.25251,117750.0,117740.0,3.09312439]
[1753828071738,8.36251,117750.0,117740.0,3.09312439]
[1753828072741,8.36251,117750.0,117740.0,2.41504439]
[1753828073044,8.36251,117750.0,117740.0,3.09312439]
[1753828073544,8.36251,117750.0,117740.0,2.98659582]
[1753828075147,8.36251,117750.0,117740.0,2.30851582]
[1753828075347,8.36251,117750.0,117740.0,2.98659582]
[1753828075848,8.36251,117750.0,117740.0,3.09293538]
[1753828079951,8.5323885,117750.0,117740.0,2.28209956]
[1753828080151,8.5323885,117750.0,117740.0,2.13003256]
[1753828080352,8.5323885,117750.0,117740.0,1.45199256]
[1753828080547,8.5323885,117750.0,117740.0,1.96009956]
[1753828080757,8.5323885,117750.0,117740.0,1.85376]
[1753828080954,8.5323885,117750.0,117740.0,1.17576]
[1753828081151,8.5323885,117750.0,117740.0,1.85376]
[1753828081556,8.5323885,117750.0,117740.0,1.17576]
[1753828081750,8.5323885,117750.0,117740.0,1.85376]
[1753828083258,8.5323885,117750.0,117740.0,0.001]
[1753828083454,0.578363,117740.0,117730.0,0.19928255]
[1753828083662,0.708363,117740.0,117730.0,0.71365169]
[1753828083957,0.708363,117740.0,117730.0,0.72231189]
[1753828084156,0.708363,117740.0,117730.0,0.89221929]
[1753828084766,0.708363,117740.0,117730.0,0.9623366]
[1753828085060,0.708363,117740.0,117730.0,0.9633366]
[1753828085659,0.708363,117740.0,117730.0,0.9623366]
[1753828085858,0.708363,117740.0,117730.0,0.9633366]
[1753828086059,0.708363,117740.0,117730.0,0.9613366]
[1753828086258,0.708363,117740.0,117730.0,0.9623366]
[1753828087664,0.708363,117740.0,117730.0,0.8559585]
[1753828090456,0.708363,117740.0,117730.0,0.09605811]
[1753828090663,0.708363,117740.0,117730.0,0.77405811]
[1753828090961,0.708363,117740.0,117730.0,0.94396551]
[1753828091455,0.708363,117740.0,117730.0,0.77405811]
[1753828092162,0.708363,117740.0,117730.0,0.94396551]
[1753828093458,0.708363,117740.0,117730.0,0.07011731]
[1753828093665,0.708363,117740.0,117730.0,0.74807731]
[1753828093971,0.5761174,117730.0,117720.0,1.17472]
[1753828094262,0.6861174,117730.0,117720.0,1.85272]
[1753828095366,0.6861174,117730.0,117720.0,1.17472]
[1753828095567,0.6861174,117730.0,117720.0,1.85268]
[1753828096155,0.6861174,117730.0,117720.0,2.0226019]
[1753828097668,0.6861174,117730.0,117720.0,1.85268]
[1753828098167,0.6861174,117730.0,117720.0,2.0226019]
[1753828098868,0.6861174,117730.0,117720.0,2.1983719]
[1753828099669,0.6861174,117730.0,117720.0,2.2394619]
[1753828100758,0.6861174,117730.0,117720.0,2.2404619]
[1753828100958,0.6861174,117730.0,117720.0,2.2414619]
[1753828102276,0.6861174,117730.0,117720.0,2.2404619]
[1753828102467,0.6861174,117730.0,117720.0,2.2414619]
[1753828104473,0.6174774,117730.0,117720.0,2.2414619]
[1753828104676,0.2799074,117730.0,117720.0,3.2414619]
[1753828104980,0.3290874,117730.0,117720.0,3.2414619]
[1753828109874,0.4564874,117730.0,117720.0,3.2414619]
[1753828110077,0.6861174,117730.0,117720.0,2.5635019]
[1753828110379,0.6861174,117730.0,117720.0,1.85468]
[1753828110680,0.6861174,117730.0,117720.0,1.97095]
[1753828110884,0.6861174,117730.0,117720.0,2.03045]
[1753828111281,0.6861174,117730.0,117720.0,2.2003719]
[1753828111578,0.6861174,117730.0,117720.0,2.1983719]
[1753828116281,0.6861174,117730.0,117720.0,2.2394619]
[1753828119983,0.6861174,117730.0,117720.0,2.2404619]
[1753828120282,0.4900774,117730.0,117720.0,2.2404619]
[1753828120484,0.4110174,117730.0,117720.0,2.2404619]
[1753828120778,0.2799074,117730.0,117720.0,2.2414619]
[1753828120984,0.2799074,117730.0,117720.0,3.2414619]
[1753828121179,0.2799074,117730.0,117720.0,3.2404619]
[1753828121380,0.2799074,117730.0,117720.0,3.2414619]
[1753828121579,0.3290874,117730.0,117720.0,3.2404619]
[1753828121782,0.3290874,117730.0,117720.0,3.2414619]
[1753828122285,0.3290874,117730.0,117720.0,3.2434619]
[1753828124388,0.11,117730.0,117720.0,3.2434619]
[1753828124682,0.2548538,117740.0,117730.0,0.56277297]
[1753828124879,0.3548538,117740.0,117730.0,0.56277297]
[1753828125086,0.4041338,117740.0,117730.0,0.56277297]
[1753828125887,0.4041338,117740.0,117730.0,0.63074753]
[1753828127288,0.3616575,117740.0,117730.0,0.63074753]
[1753828128387,8.04928,117750.0,117740.0,0.4859924]
[1753828128586,8.27803,117750.0,117740.0,1.2233324]
[1753828128788,8.515628,117750.0,117740.0,2.2233324]
[1753828130790,8.34575,117750.0,117740.0,2.2233324]
[1753828130982,8.15928,117750.0,117740.0,2.2233324]
[1753828131288,8.447908,117750.0,117740.0,2.2233324]
[1753828131490,8.515628,117750.0,117740.0,2.2233324]
[1753828132094,8.34575,117750.0,117740.0,2.2233324]
[1753828132276,8.227,117750.0,117740.0,2.2233324]
[1753828132477,8.15928,117750.0,117740.0,2.2233324]
[1753828134192,8.27803,117750.0,117740.0,2.2233324]
[1753828134585,8.5156282,117750.0,117740.0,2.2233324]
[1753828135292,8.34575,117750.0,117740.0,2.2233324]
[1753828136888,8.15928,117750.0,117740.0,2.2233324]
[1753828137191,8.34575,117750.0,117740.0,2.2233324]
[1753828140596,8.5156282,117750.0,117740.0,2.2233324]
[1753828141697,8.5156282,117750.0,117740.0,2.1822424]
[1753828142500,8.5156282,117750.0,117740.0,1.5044024]
[1753828142698,8.5156282,117750.0,117740.0,2.1821224]
[1753828143603,8.5156282,117750.0,117740.0,1.5044024]
[1753828143898,8.34575,117750.0,117740.0,2.1821224]
[1753828144101,8.34575,117750.0,117740.0,2.2232124]
[1753828144901,8.34575,117750.0,117740.0,1.5454924]
[1753828145102,8.34575,117750.0,117740.0,2.1821224]
[1753828148994,8.5156281,117750.0,117740.0,2.1821224]
[1753828149190,8.34575,117750.0,117740.0,2.1821224]
[1753828149695,8.34575,117750.0,117740.0,2.2885005]
[1753828149891,8.34575,117750.0,117740.0,2.3295905]
[1753828151395,8.34575,117750.0,117740.0,2.2885005]
[1753828160805,8.34575,117750.0,117740.0,2.1821224]
[1753828161004,8.34575,117750.0,117740.0,2.2232124]
[1753828162400,8.34575,117750.0,117740.0,2.2885005]
[1753828164805,8.34575,117750.0,117740.0,3.5043505]
[1753828167703,8.23658,117750.0,117740.0,3.5043505]
[1753828169810,8.23658,117750.0,117740.0,3.3979724]
[1753828171611,8.04928,117750.0,117740.0,3.3568824]
[1753828171813,8.23658,117750.0,117740.0,3.3979724]
[1753828172308,8.34658,117750.0,117740.0,3.4009724]
[1753828172612,8.23658,117750.0,117740.0,3.4009724]
[1753828173001,8.23658,117750.0,117740.0,3.3979724]
[1753828173201,8.23658,117750.0,117740.0,3.4009724]
[1753828174609,8.23658,117750.0,117740.0,3.4049724]
[1753828177616,8.23658,117750.0,117740.0,3.55766162]
[1753828180118,8.23658,117750.0,117740.0,3.4049724]
[1753828180421,8.23658,117750.0,117740.0,3.3638824]
[1753828182426,8.35658,117750.0,117740.0,2.3516524]
[1753828182725,8.35658,117750.0,117740.0,3.0291724]
[1753828183724,8.35658,117750.0,117740.0,3.0271724]
[1753828184021,8.35658,117750.0,117740.0,3.0271324]
[1753828184222,8.35658,117750.0,117740.0,3.0261324]
[1753828189136,8.35658,117750.0,117740.0,3.1298124]
[1753828189336,8.35658,117750.0,117740.0,3.1893124]
[1753828189739,8.35658,117750.0,117740.0,3.1873124]
[1753828189932,8.35658,117750.0,117740.0,3.1913124]
[1753828190334,8.23658,117750.0,117740.0,3.1913124]
[1753828190529,8.23658,117750.0,117740.0,3.2324024]
[1753828190934,8.23658,117750.0,117740.0,3.2334024]
[1753828191739,8.23658,117750.0,117740.0,3.2304024]
[1753828191935,8.23658,117750.0,117740.0,3.2334024]
[1753828192140,8.23658,117750.0,117740.0,3.38609162]
[1753828192336,7.17966502,117750.0,117740.0,3.47102091]
[1753828192541,7.12890368,117750.0,117740.0,3.47102091]
[1753828192843,6.69969128,117750.0,117740.0,3.64087691]
[1753828193134,5.14900197,117750.0,117740.0,2.89087691]
[1753828193336,4.28962674,117750.0,117740.0,3.0893729]
[1753828193539,4.21729624,117750.0,117740.0,3.0893729]
[1753828193738,4.21729624,117750.0,117740.0,2.93668368]
[1753828194137,4.26474624,117750.0,117740.0,2.93668368]
[1753828194335,4.26474624,117750.0,117740.0,2.25920368]
[1753828194642,4.45103624,117750.0,117740.0,1.88318439]
[1753828194941,4.45103624,117750.0,117740.0,2.56062439]
[1753828195236,4.45103624,117750.0,117740.0,1.88318439]
[1753828195443,4.45103624,117750.0,117740.0,2.56062439]
[1753828195643,4.45103624,117750.0,117740.0,2.60171439]
[1753828197738,4.26474624,117750.0,117740.0,2.60171439]
[1753828197940,4.37677624,117750.0,117740.0,2.60171439]
[1753828198132,4.45103624,117750.0,117740.0,2.60171439]
[1753828198440,4.26474624,117750.0,117740.0,2.68664368]
[1753828198740,4.15029624,117750.0,117740.0,2.68664368]
[1753828198941,4.19774624,117750.0,117740.0,2.68664368]
[1753828199646,4.30117624,117750.0,117740.0,2.68664368]
[1753828200247,4.37543624,117750.0,117740.0,2.68664368]
[1753828200742,4.37543624,117750.0,117740.0,2.1326924]
[1753828200943,4.37543624,117750.0,117740.0,1.60671174]
[1753828201149,4.37543624,117750.0,117740.0,2.28407174]
[1753828201445,4.37543624,117750.0,117740.0,2.38466174]
[1753828202550,4.37543624,117750.0,117740.0,2.34357174]
[1753828203247,4.37543624,117750.0,117740.0,2.18035174]
[1753828203844,4.37543624,117750.0,117740.0,1.50303174]
[1753828204043,4.37543624,117750.0,117740.0,2.18035174]
[1753828204950,4.37543624,117750.0,117740.0,2.0289724]
[1753828206054,4.37543624,117750.0,117740.0,1.3516524]
[1753828206353,4.37543624,117750.0,117740.0,2.0289724]
[1753828208056,4.37543624,117750.0,117740.0,2.18035174]
[1753828208350,4.37543624,117750.0,117740.0,1.50303174]
[1753828208552,4.37543624,117750.0,117740.0,2.18035174]
[1753828208754,4.50543624,117750.0,117740.0,1.50303174]
[1753828209049,4.50543624,117750.0,117740.0,2.0289724]
[1753828210155,4.50543624,117750.0,117740.0,2.0239724]
[1753828210356,4.50543624,117750.0,117740.0,2.0259724]
[1753828210857,4.37543624,117750.0,117740.0,2.0259724]
[1753828211054,4.48543624,117750.0,117740.0,2.0259724]
[1753828215959,4.48543624,117750.0,117740.0,2.0269724]
[1753828216464,4.37543624,117750.0,117740.0,2.0269724]
[1753828217160,4.37543624,117750.0,117740.0,2.1643224]
[1753828217461,4.37543624,117750.0,117740.0,2.1633224]
[1753828217655,4.49543624,117750.0,117740.0,2.1633224]
[1753828218860,4.49543624,117750.0,117740.0,2.1613224]
[1753828219062,4.49543624,117750.0,117740.0,2.1643224]
[1753828221561,4.49543624,117750.0,117740.0,2.2238224]
[1753828221857,4.37543624,117750.0,117740.0,2.1643224]
[1753828222065,4.37543624,117750.0,117740.0,2.2649124]
[1753828224361,4.37543624,117750.0,117740.0,2.41629174]
[1753828224860,4.37543624,117750.0,117740.0,2.37520174]
[1753828227364,4.37543624,117750.0,117740.0,2.37540174]
[1753828227766,4.37543624,117750.0,117740.0,2.31594174]
[1753828228265,4.37543624,117750.0,117740.0,2.37544174]
[1753828231365,4.48543624,117750.0,117740.0,1.56253174]
[1753828231568,4.48543624,117750.0,117740.0,2.18047174]
[1753828231868,4.50543624,117750.0,117740.0,2.18047174]
[1753828232168,4.49543624,117750.0,117740.0,2.18047174]
[1753828232362,4.49543624,117750.0,117740.0,2.0290924]
[1753828232669,4.37543624,117750.0,117740.0,2.2239424]
[1753828234674,4.49543624,117750.0,117740.0,2.1644424]
[1753828235672,4.37543624,117750.0,117740.0,2.1644424]
[1753828235869,4.49543624,117750.0,117740.0,2.1644424]
[1753828238271,4.37543624,117750.0,117740.0,2.1644424]
[1753828238476,4.37543624,117750.0,117740.0,2.2239424]
[1753828238677,4.49543624,117750.0,117740.0,2.2239424]
[1753828239176,4.48543624,117750.0,117740.0,2.2239424]
[1753828239878,4.37543624,117750.0,117740.0,2.2239424]
[1753828240079,4.37543624,117750.0,117740.0,2.2650324]
[1753828241078,4.37543624,117750.0,117740.0,2.41641174]
[1753828241874,4.37543624,117750.0,117740.0,2.41741174]
[1753828242482,4.37543624,117750.0,117740.0,2.41841174]
[1753828244780,4.37543624,117750.0,117740.0,2.43555101]
[1753828245982,4.37543624,117750.0,117740.0,2.28417167]
[1753828246785,4.37543624,117750.0,117740.0,2.24308167]
[1753828248281,4.37543624,117750.0,117740.0,2.28417167]
[1753828249288,4.39209624,117750.0,117740.0,2.28417167]
[1753828252186,4.00876686,117750.0,117740.0,2.45402767]
[1753828252491,4.05476686,117750.0,117740.0,2.45402767]
[1753828252692,4.05476686,117750.0,117740.0,2.53895696]
[1753828253887,4.00876686,117750.0,117740.0,2.53895696]
[1753828254092,4.05476686,117750.0,117740.0,2.53895696]
[1753828254287,4.00876686,117750.0,117740.0,2.53895696]
[1753828254590,4.05476686,117750.0,117740.0,2.53895696]
[1753828254994,4.05476686,117750.0,117740.0,2.73745295]
[1753828255289,4.02676686,117750.0,117740.0,2.73745295]
[1753828255793,4.02676686,117750.0,117740.0,2.56759695]
[1753828257092,4.16171686,117750.0,117740.0,2.56759695]
[1753828257288,4.22971686,117750.0,117740.0,2.56759695]
[1753828262302,4.22971686,117750.0,117740.0,2.36910096]
[1753828262497,4.22384047,117750.0,117740.0,2.36910096]
[1753828264808,4.16398047,117750.0,117740.0,2.36910096]
[1753828265105,4.14998047,117750.0,117740.0,2.36910096]
[1753828265608,4.14187047,117750.0,117740.0,2.36910096]
[1753828267201,4.14187047,117750.0,117740.0,2.52054129]
[1753828267710,4.12147047,117750.0,117740.0,2.52054129]
[1753828268008,3.74678576,117750.0,117740.0,2.36910096]
[1753828268904,3.74678576,117750.0,117740.0,2.56595681]
[1753828270106,3.74678576,117750.0,117740.0,2.36910096]
[1753828270310,3.66154866,117750.0,117740.0,2.36910096]
[1753828270610,3.61951396,117750.0,117740.0,2.36910096]
[1753828271008,3.61951396,117750.0,117740.0,2.56591067]
[1753828272214,3.61093396,117750.0,117740.0,2.36910096]
[1753828273402,3.61093396,117750.0,117740.0,2.52048175]
[1753828274012,3.60261396,117750.0,117740.0,2.52048175]
[1753828274209,3.59633396,117750.0,117740.0,2.52048175]
[1753828275614,3.59633396,117750.0,117740.0,2.47939175]
[1753828278115,3.59633396,117750.0,117740.0,2.32801096]
[1753828279815,3.59633396,117750.0,117740.0,2.47945187]
[1753828281118,3.57971994,117750.0,117740.0,2.47945187]
[1753828281615,3.57971994,117750.0,117740.0,2.36910096]
[1753828281918,3.57495994,117750.0,117740.0,2.56591067]
[1753828282113,3.55495994,117750.0,117740.0,2.56591067]
[1753828284315,3.55495994,117750.0,117740.0,2.36910096]
[1753828284713,3.55106994,117750.0,117740.0,2.36910096]
[1753828284915,3.50444994,117750.0,117740.0,2.36910096]
[1753828285208,3.41540994,117750.0,117740.0,2.36910096]
[1753828285409,3.35275994,117750.0,117740.0,2.36910096]
[1753828285614,3.35056994,117750.0,117740.0,2.36910096]
[1753828287218,1.82812994,117750.0,117740.0,2.36910096]
[1753828288418,1.82355094,117750.0,117740.0,2.36910096]
[1753828288821,1.82355094,117750.0,117740.0,2.32801096]
[1753828289216,1.82355094,117750.0,117740.0,2.26851096]
[1753828290018,1.82355094,117750.0,117740.0,2.32801096]
[1753828290317,1.81813094,117750.0,117740.0,2.32801096]
[1753828291323,1.81813094,117750.0,117740.0,2.36910096]
[1753828292622,1.81813094,117750.0,117740.0,2.63900096]
[1753828293522,1.80501094,117750.0,117740.0,2.63900096]
[1753828295124,1.80501094,117750.0,117740.0,2.79052942]
[1753828295320,1.51284094,117750.0,117740.0,2.79052942]
[1753828295525,1.72621094,117750.0,117740.0,2.98751642]
[1753828296127,1.71840094,117750.0,117740.0,2.83598796]
[1753828296623,0.89101342,117750.0,117740.0,2.83598796]
[1753828296821,0.65961552,117750.0,117740.0,2.63900096]
[1753828297017,0.65961552,117750.0,117740.0,2.83613719]
[1753828299624,0.33590622,117750.0,117740.0,2.83613719]
[1753828299829,0.05121142,117750.0,117740.0,2.83613719]
[1753828300130,0.4306,117760.0,117750.0,0.5740181]
[1753828300324,0.4306,117760.0,117750.0,1.47232642]
[1753828300626,0.4306,117760.0,117750.0,1.66946265]
[1753828300828,0.4306,117760.0,117750.0,1.75438473]
[1753828301326,0.4306,117760.0,117750.0,1.75838473]
[1753828301526,0.4306,117760.0,117750.0,2.02828473]
[1753828302930,0.4306,117760.0,117750.0,2.03128473]
[1753828305333,0.4306,117760.0,117750.0,1.8341485]
[1753828305930,0.4306,117760.0,117750.0,1.7930585]
[1753828307334,0.3604647,117760.0,117750.0,1.7930585]
[1753828307734,0.3604647,117760.0,117750.0,1.1156585]
[1753828307932,0.3604647,117760.0,117750.0,1.7930185]
[1753828310336,0.3604647,117760.0,117750.0,1.8341085]
[1753828314043,0.319563,117760.0,117750.0,1.8341085]
[1753828314240,0.29187947,117760.0,117750.0,1.8341085]
[1753828314941,0.29187947,117760.0,117750.0,2.03124473]
[1753828316143,0.45286947,117760.0,117750.0,2.03124473]
[1753828316342,0.4496,117770.0,117760.0,0.5937464]
[1753828316541,0.4496,117770.0,117760.0,1.05052349]
[1753828316937,0.4496,117770.0,117760.0,1.13543836]
[1753828317742,0.4496,117770.0,117760.0,1.13743836]
[1753828318339,0.4496,117770.0,117760.0,2.31171836]
[1753828319142,0.4496,117770.0,117760.0,2.31371836]
[1753828323044,0.4496,117770.0,117760.0,2.27262836]
[1753828324851,0.4496,117770.0,117760.0,2.31371836]
[1753828327745,0.4496,117770.0,117760.0,2.46554875]
[1753828329252,0.4496,117770.0,117760.0,2.31371836]
[1753828330552,0.4496,117770.0,117760.0,2.46555067]
[1753828331451,0.4496,117770.0,117760.0,2.5915608]
[1753828331850,0.4496,117770.0,117760.0,2.7452408]
[1753828332148,0.4496,117770.0,117760.0,2.8047708]
[1753828332949,0.4496,117770.0,117760.0,2.65293849]
[1753828333149,0.4496,117770.0,117760.0,2.69402849]
[1753828334051,0.4496,117770.0,117760.0,2.42412849]
[1753828334252,0.4496,117770.0,117760.0,2.57595526]
[1753828338254,0.4496,117770.0,117760.0,2.42412849]
[1753828340248,0.4496,117770.0,117760.0,2.62126472]
[1753828340445,0.4496,117770.0,117760.0,1.90289472]
[1753828340656,0.4496,117770.0,117760.0,2.36692472]
[1753828340857,0.4496,117770.0,117760.0,2.53068472]
[1753828341351,0.4496,117770.0,117760.0,1.85344472]
[1753828341660,0.4496,117770.0,117760.0,2.59021472]
[1753828342157,0.4496,117770.0,117760.0,2.7420843]
[1753828342756,0.4496,117770.0,117760.0,2.54494807]
[1753828343456,0.30559,117780.0,117770.0,0.3787886]
[1753828343657,0.46905,117780.0,117770.0,0.5619779]